Department family,Entity,Date,Expense type,Expense area,Supplier,Transaction number,Amount
Department of Health,University Hospitals of Morecambe Bay NHS Foundation Trust,03-Aug-16,Rates,Estates & Facilities,BOROUGH OF BARROW-IN-FURNESS,1185844,56741
Department of Health,University Hospitals of Morecambe Bay NHS Foundation Trust,03-Aug-16,Managed Service Contract,Corporate,CARVETI PARTNERSHIP LTD,1186156,69551.98
Department of Health,University Hospitals of Morecambe Bay NHS Foundation Trust,03-Aug-16,Managed Service Contract,Corporate,CARVETI PARTNERSHIP LTD,1186158,35135.89
Department of Health,University Hospitals of Morecambe Bay NHS Foundation Trust,03-Aug-16,Agency Midwives,Womens & Childrens,HB RETINUE LTD,1185464,34851.4
Department of Health,University Hospitals of Morecambe Bay NHS Foundation Trust,03-Aug-16,Agency ODPs,Theatres,HB RETINUE LTD,1185467,28588.09
Department of Health,University Hospitals of Morecambe Bay NHS Foundation Trust,03-Aug-16,Building Services,Capital Services,INTEGRATED HEALTH PROJECTS,1186138,403216.06
Department of Health,University Hospitals of Morecambe Bay NHS Foundation Trust,03-Aug-16,Laboratory Testing,Pathology,LANCASHIRE TEACHING HOSPITALS NHS FOUNDATION TRUST,1184500,25936.63
Department of Health,University Hospitals of Morecambe Bay NHS Foundation Trust,03-Aug-16,Rates,Estates & Facilities,LANCASTER CITY COUNCIL,1185840,46801
Department of Health,University Hospitals of Morecambe Bay NHS Foundation Trust,03-Aug-16,Agency Medical Staff,Ophthalmology,MINOR OPS LIMITED,1182643,33808.8
Department of Health,University Hospitals of Morecambe Bay NHS Foundation Trust,03-Aug-16,CNST Premium,Corporate,NHS LITIGATION AUTHORITY,1182743,870576
Department of Health,University Hospitals of Morecambe Bay NHS Foundation Trust,03-Aug-16,NHS Product Sales,Trust Wide,NHS SUPPLY CHAIN,1182642,139205.67
Department of Health,University Hospitals of Morecambe Bay NHS Foundation Trust,03-Aug-16,NHS Product Sales,Trust Wide,NHS SUPPLY CHAIN,1183883,132096.03
Department of Health,University Hospitals of Morecambe Bay NHS Foundation Trust,03-Aug-16,Drugs,Pharmacy,ROCHE PRODUCTS LTD,1180889,53742.66
Department of Health,University Hospitals of Morecambe Bay NHS Foundation Trust,03-Aug-16,Hardware,Information Technology,SOFTCAT LTD,1179114,39226.72
Department of Health,University Hospitals of Morecambe Bay NHS Foundation Trust,03-Aug-16,Rates,Estates & Facilities,SOUTH LAKELAND DISTRICT COUNCIL,1185845,36654
Department of Health,University Hospitals of Morecambe Bay NHS Foundation Trust,03-Aug-16,Waiting List (Additional Capacity),Surgery,SPIRE HEALTHCARE LTD,1180774,67933.11
Department of Health,University Hospitals of Morecambe Bay NHS Foundation Trust,03-Aug-16,Building Services,Capital Services,WALTER CAREFOOT & SONS (CONS) LTD,1153547,65550
Department of Health,University Hospitals of Morecambe Bay NHS Foundation Trust,03-Aug-16,Building Services,Capital Services,WALTER CAREFOOT & SONS (CONS) LTD,1185427,107330.43
Department of Health,University Hospitals of Morecambe Bay NHS Foundation Trust,10-Aug-16,MRI Scans (Mobile Unit),Radiology,ALLIANCE MEDICAL LTD,1181398,22080
Department of Health,University Hospitals of Morecambe Bay NHS Foundation Trust,10-Aug-16,MRI Scans (Mobile Unit),Radiology,ALLIANCE MEDICAL LTD,1181838,26575
Department of Health,University Hospitals of Morecambe Bay NHS Foundation Trust,10-Aug-16,Speech & Language Therapy Services,Core Clinical,CUMBRIA PARTNERSHIP NHS TRUST,1185760,30800.68
Department of Health,University Hospitals of Morecambe Bay NHS Foundation Trust,10-Aug-16,Lift Refurbishment,Capital Services,E A FOULDS LTD,1153548,69920
Department of Health,University Hospitals of Morecambe Bay NHS Foundation Trust,10-Aug-16,Agency Medical Staff - Management Costs,,HB RETINUE LTD,1185463,35216.68
Department of Health,University Hospitals of Morecambe Bay NHS Foundation Trust,10-Aug-16,Agency Medical Staff,Ophthalmology,MINOR OPS LIMITED,1187225,30037.92
Department of Health,University Hospitals of Morecambe Bay NHS Foundation Trust,10-Aug-16,Blood & Blood components contract,Core Clinical,NHS BLOOD & TRANSPLANT,1186012,54352.67
Department of Health,University Hospitals of Morecambe Bay NHS Foundation Trust,10-Aug-16,Blood & Blood components contract,Core Clinical,NHS BLOOD & TRANSPLANT,1186014,35908.92
Department of Health,University Hospitals of Morecambe Bay NHS Foundation Trust,10-Aug-16,NHS Product Sales,Trust Wide,NHS SUPPLY CHAIN,1186017,144701.55
Department of Health,University Hospitals of Morecambe Bay NHS Foundation Trust,10-Aug-16,Electricity,Estates & Facilities,NPOWER,1188281,75423.91
Department of Health,University Hospitals of Morecambe Bay NHS Foundation Trust,10-Aug-16,Electricity,Estates & Facilities,NPOWER,1188282,28986.11
Department of Health,University Hospitals of Morecambe Bay NHS Foundation Trust,10-Aug-16,Electricity,Estates & Facilities,NPOWER,1188283,61442.99
Department of Health,University Hospitals of Morecambe Bay NHS Foundation Trust,10-Aug-16,Building Services,Capital Services,PININGTON CONSTRUCTION,1188195,82650
Department of Health,University Hospitals of Morecambe Bay NHS Foundation Trust,10-Aug-16,Drugs,Pharmacy,ROCHE PRODUCTS LTD,1182995,42734.4
Department of Health,University Hospitals of Morecambe Bay NHS Foundation Trust,10-Aug-16,Recharge Specialist Registrars,Trust Wide,THE PENNINE ACUTE HOSPITALS NHS TRUST,1186757,307000
Department of Health,University Hospitals of Morecambe Bay NHS Foundation Trust,10-Aug-16,Recharge Specialist Registrars,Trust Wide,THE PENNINE ACUTE HOSPITALS NHS TRUST,1186758,83000
Department of Health,University Hospitals of Morecambe Bay NHS Foundation Trust,10-Aug-16,Recharge Specialist Registrars,Trust Wide,THE PENNINE ACUTE HOSPITALS NHS TRUST,1186759,67000
Department of Health,University Hospitals of Morecambe Bay NHS Foundation Trust,12-Aug-16,Agency Midwives,Womens & Childrens,HB RETINUE LTD,1186768,32770.5
Department of Health,University Hospitals of Morecambe Bay NHS Foundation Trust,17-Aug-16,Beds Managed Contract,Trust Wide,ARJO HUNTLEIGH LTD,1184836,44668.1
Department of Health,University Hospitals of Morecambe Bay NHS Foundation Trust,17-Aug-16,Managed Service Contract,Pathology,BECKMAN COULTER UK LTD,1183200,160991.42
Department of Health,University Hospitals of Morecambe Bay NHS Foundation Trust,17-Aug-16,CRC Vouchers,Estates & Facilities,BUPA,1190119,36990.72
Department of Health,University Hospitals of Morecambe Bay NHS Foundation Trust,17-Aug-16,Agency ODPs,Theatres,HB RETINUE LTD,1188684,27893.44
Department of Health,University Hospitals of Morecambe Bay NHS Foundation Trust,17-Aug-16,Agency Midwives,Womens & Childrens,HB RETINUE LTD,1188685,27918.23
Department of Health,University Hospitals of Morecambe Bay NHS Foundation Trust,17-Aug-16,NHS Product Sales,Trust Wide,NHS SUPPLY CHAIN,1187661,144860.71
Department of Health,University Hospitals of Morecambe Bay NHS Foundation Trust,17-Aug-16,Water Charges,Estates & Facilities,UNITED UTILITIES WATER LIMITED,1190128,27169.82
Department of Health,University Hospitals of Morecambe Bay NHS Foundation Trust,24-Aug-16,Laundry,Estates & Facilities,BERENDSEN UK LTD,1185952,24204.37
Department of Health,University Hospitals of Morecambe Bay NHS Foundation Trust,24-Aug-16,Laundry,Estates & Facilities,BERENDSEN UK LTD,1185967,35785.57
Department of Health,University Hospitals of Morecambe Bay NHS Foundation Trust,24-Aug-16,Waiting List (Additional Capacity),Surgery,BMI HEALTHCARE LTD,1186174,80451.49
Department of Health,University Hospitals of Morecambe Bay NHS Foundation Trust,24-Aug-16,Pacemakers,Cardiac Centre,BOSTON SCIENTIFIC LTD,1185606,39600
Department of Health,University Hospitals of Morecambe Bay NHS Foundation Trust,24-Aug-16,Maintenance Contract,Information Technology,GE MEDICAL SYSTEMS LTD,1186296,54951.37
Department of Health,University Hospitals of Morecambe Bay NHS Foundation Trust,24-Aug-16,Agency Midwives,Womens & Childrens,HB RETINUE LTD,1190650,38493.79
Department of Health,University Hospitals of Morecambe Bay NHS Foundation Trust,24-Aug-16,Blood & Blood components contract,Core Clinical,NHS BLOOD & TRANSPLANT,1190725,35908.92
Department of Health,University Hospitals of Morecambe Bay NHS Foundation Trust,24-Aug-16,Blood & Blood components contract,Core Clinical,NHS BLOOD & TRANSPLANT,1190726,54352.67
Department of Health,University Hospitals of Morecambe Bay NHS Foundation Trust,24-Aug-16,CNST Premium,Corporate,NHS LITIGATION AUTHORITY,1189133,870576
Department of Health,University Hospitals of Morecambe Bay NHS Foundation Trust,24-Aug-16,NHS Product Sales,Trust Wide,NHS SUPPLY CHAIN,1189760,143778.91
Department of Health,University Hospitals of Morecambe Bay NHS Foundation Trust,24-Aug-16,Medical Equipment,Endoscopy,NHS SUPPLY CHAIN,1191048,160720.2
Department of Health,University Hospitals of Morecambe Bay NHS Foundation Trust,24-Aug-16,NHS Product Sales,Trust Wide,NHS SUPPLY CHAIN,1191356,149779.32
Department of Health,University Hospitals of Morecambe Bay NHS Foundation Trust,24-Aug-16,Sustainability Project Management,Trust Board,PRICEWATERHOUSECOOPERS,1182268,185771
Department of Health,University Hospitals of Morecambe Bay NHS Foundation Trust,24-Aug-16,Sustainability Project Management,Trust Board,PRICEWATERHOUSECOOPERS,1185414,243404
Department of Health,University Hospitals of Morecambe Bay NHS Foundation Trust,24-Aug-16,Audit Assurance,Corporate,ROYAL LIVERPOOL AND BROADGREEN UNIVERSITY HOSPITALS NHS TRUST,1189155,35856
Department of Health,University Hospitals of Morecambe Bay NHS Foundation Trust,24-Aug-16,Laboratory Testing,Pathology,UNILABS LTD T/A IND HISTOPATH SVS,1180091,32575
